fUSD/lending_fUSD_20240921
["ID","MTS","AMOUNT","RATE_DAILY","PERIOD"]
[338689609,1726876829411,2110.57,0.00012023,2]
[338689610,1726876848629,250.0,0.00011915,2]
[338689611,1726876879219,400.0,0.00011604,2]
[338689612,1726876913041,222.091813,0.00012995,119]
[338689613,1726876924294,4499.42,0.000119,2]
[338689614,1726876950755,150.0,0.00014922,120]
[338689615,1726876983246,382.9079874,0.00011604,2]
[338689617,1726877101787,250.0,0.00011909,2]
[338689618,1726877112857,151.62886511,0.00011688,2]
[338689619,1726877163365,320.83,0.00010116,2]
[338689620,1726877241814,1000.0,0.0001191,2]
[338689621,1726877359262,500.0,0.00011164,2]
[338689622,1726877361112,-588.0,0.00012139,2]
[338689624,1726877389504,293.25,0.00011921,2]
[338689625,1726877406812,250.0,0.00011924,2]
[338689626,1726877407649,1012.26128126,0.00012,2]
[338689636,1726877431472,-1521.1723,0.00012139,2]
[338689638,1726877431481,-170.1,0.00012239,2]
[338689640,1726877431490,-300.0,0.000123,4]
[338689642,1726877431500,-327.36,0.00012328,2]
[338689643,1726877431509,-115.41774863,0.0001238,2]
[338689645,1726877431528,-205.41225137,0.0001238,2]
[338689647,1726877431537,-700.0,0.000124,4]
[338689649,1726877431546,-150.0,0.00012499,2]
[338689651,1726877431555,-715.0,0.000125,2]
[338689653,1726877431564,-428.14,0.000125,2]
[338689655,1726877431575,-753.33,0.000125,2]
[338689657,1726877431585,-300.0,0.000125,2]
[338689659,1726877431594,-150.0,0.000125,2]
[338689661,1726877431603,-150.0,0.000125,2]
[338689662,1726877431612,-422.74,0.000125,2]
[338689663,1726877431621,-150.0,0.000125,2]
[338689664,1726877431630,-422.74,0.000125,2]
[338689665,1726877431639,-428.14,0.000125,2]
[338689666,1726877431648,-79.40355633,0.000125,2]
[338689667,1726877431699,-70.59644367,0.000125,2]
[338689668,1726877431708,-753.33,0.000125,2]
[338689669,1726877431717,-422.74,0.000125,2]
[338689670,1726877431727,-753.33,0.000125,2]
[338689671,1726877431736,-428.14,0.000125,2]
[338689672,1726877431745,-150.0,0.000125,2]
[338689673,1726877431754,-753.33,0.000125,2]
[338689674,1726877431763,-150.0,0.000125,2]
[338689675,1726877431772,-323.13,0.000125,2]
[338689676,1726877431781,-428.14,0.000125,2]
[338689677,1726877431789,-753.33,0.000125,2]
[338689678,1726877431798,-150.0,0.000125,2]
[338689679,1726877431807,-428.14,0.000125,2]
[338689680,1726877431816,-753.33,0.000125,2]
[338689681,1726877431825,-62.2362791,0.000125,2]
[338689682,1726877431845,-87.7637209,0.000125,2]
[338689684,1726877431854,-150.0,0.000125,2]
[338689686,1726877431863,-428.14,0.000125,2]
[338689688,1726877431872,-1344.37,0.000125,2]
[338689690,1726877431881,-359.99,0.000125,2]
[338689691,1726877431890,-150.0,0.000125,2]
[338689693,1726877431899,-428.14,0.000125,2]
[338689695,1726877431909,-427.24,0.000125,2]
[338689696,1726877431918,-150.0,0.000125,2]
[338689697,1726877431927,-150.0,0.000125,2]
[338689698,1726877431936,-150.0,0.000125,2]
[338689699,1726877431945,-1000.0,0.000125,4]
[338689700,1726877431954,-752.99,0.000125,2]
[338689701,1726877431964,-17.50347023,0.000125,2]
[338689702,1726877432426,-402.31913625,0.000125,2]
[338689703,1726877432437,-1026.39824093,0.000125,2]
[338689704,1726877432448,-817.48915259,0.000125,2]
[338689705,1726877432457,-1400.0,0.000126,4]
[338689706,1726877432467,-1000.0,0.000127,2]
[338689707,1726877432476,-1700.0,0.000127,4]
[338689708,1726877432686,-1000.0,0.000128,2]
[338689709,1726877432695,-499.99,0.000128,2]
[338689710,1726877432704,-304.08,0.000128,2]
[338689711,1726877432713,-150.0,0.000128,2]
[338689712,1726877432722,-427.94,0.000128,2]
[338689713,1726877432731,-150.0,0.000128,2]
[338689714,1726877432740,-169.82,0.000128,2]
[338689715,1726877432750,-422.56,0.000128,2]
[338689716,1726877432759,-150.0,0.000128,2]
[338689717,1726877432768,-300.0,0.000128,4]
[338689718,1726877432777,-727.0,0.0001287,2]
[338689719,1726877432786,-500.0,0.00012896,2]
[338689720,1726877432795,-200.0,0.00012896,2]
[338689721,1726877432804,-512.446,0.00012898,2]
[338689722,1726877432813,-165.319,0.00012898,2]
[338689723,1726877432821,-1829.35584741,0.00012899,2]
[338689724,1726877432843,-8270.13235259,0.00012899,2]
[338689725,1726877432852,-178.1665,0.00012899,2]
[338689726,1726877432861,-49331.11906348,0.00012899,2]
[338689740,1726877437607,-987.45743925,0.00012899,2]
[338689741,1726877437618,-820.5999,0.00012899,2]
[338689742,1726877437630,-4805.27819727,0.00012899,2]
[338689743,1726877437640,-1000.0,0.00012899,2]
[338689744,1726877437650,-3441.93929453,0.000129,2]
[338689745,1726877437765,-818.775,0.000129,2]
[338689746,1726877437820,-6006.36176534,0.000129,2]
[338689747,1726877437833,-4882.92314013,0.000129,2]
[338689748,1726877437842,-1146.4311,0.000129,2]
[338689749,1726877437851,-214.13293722,0.000129,2]
[338689750,1726877437861,-753.33,0.000129,2]
[338689751,1726877437870,-422.74,0.000129,2]
[338689752,1726877437879,-154.31128906,0.000129,2]
[338689753,1726877437889,-1000.0,0.000129,2]
[338689754,1726877437899,-7500.0,0.000129,2]
[338689755,1726877437908,-300.0,0.000129,4]
[338689756,1726877437918,-180.50056878,0.000129,2]
[338689757,1726877437927,-180.50056878,0.000129,2]
[338689758,1726877437937,-181.0,0.000129,2]
[338689759,1726877437947,-201.40530324,0.000129,2]
[338689760,1726877437956,-201.40530324,0.000129,2]
[338689761,1726877437966,-201.40530324,0.000129,2]
[338689762,1726877437976,-201.40530324,0.000129,2]
[338689763,1726877437985,-201.40530324,0.000129,2]
[338689764,1726877437995,-201.40530324,0.000129,2]
[338689765,1726877438005,-201.40530324,0.000129,2]
[338689766,1726877438014,-201.40530324,0.000129,2]
[338689767,1726877438023,-201.40530324,0.000129,2]
[338689768,1726877438033,-201.40530324,0.000129,2]
[338689769,1726877438043,-201.40530324,0.000129,2]
[338689770,1726877438053,-201.40530324,0.000129,2]
[338689771,1726877438063,-201.40530324,0.000129,2]
[338689772,1726877438073,-201.40530324,0.000129,2]
[338689773,1726877438084,-201.40530324,0.000129,2]
[338689775,1726877438093,-201.40530324,0.000129,2]
[338689777,1726877438103,-201.40530324,0.000129,2]
[338689778,1726877438113,-201.40530324,0.000129,2]
[338689779,1726877438123,-201.40530324,0.000129,2]
[338689780,1726877438132,-201.9,0.000129,2]
[338689781,1726877438142,-214.9659036,0.000129,2]
[338689782,1726877438151,-214.9659036,0.000129,2]
[338689783,1726877438160,-214.9659036,0.000129,2]
[338689784,1726877438170,-214.9659036,0.000129,2]
[338689785,1726877438180,-214.9659036,0.000129,2]
[338689786,1726877438190,-214.9659036,0.000129,2]
[338689787,1726877438199,-214.9659036,0.000129,2]
[338689788,1726877438210,-214.9659036,0.000129,2]
[338689789,1726877438220,-214.9659036,0.000129,2]
[338689790,1726877438229,-214.9659036,0.000129,2]
[338689791,1726877438239,-214.9659036,0.000129,2]
[338689792,1726877438248,-214.9659036,0.000129,2]
[338689793,1726877438258,-214.9659036,0.000129,2]
[338689794,1726877438267,-214.9659036,0.000129,2]
[338689795,1726877438277,-214.9659036,0.000129,2]
[338689796,1726877438286,-214.9659036,0.000129,2]
[338689797,1726877438296,-214.9659036,0.000129,2]
[338689798,1726877438306,-214.9659036,0.000129,2]
[338689799,1726877438315,-214.9659036,0.000129,2]
[338689800,1726877438325,-215.46,0.000129,2]
[338689801,1726877438337,-656.53843876,0.000129,2]
[338689802,1726877438346,-308.98765551,0.000129,2]
[338689803,1726877438355,-275.52126727,0.00012973,2]
[338689804,1726877438364,-1000.0,0.00012986,2]
[338689805,1726877438376,-152.33,0.0001299,2]
[338689806,1726877438386,-152.33,0.0001299,2]
[338689807,1726877438395,-152.33,0.0001299,2]
[338689808,1726877438404,-152.33,0.0001299,2]
[338689809,1726877438413,-152.33,0.0001299,2]
[338689810,1726877438422,-152.33,0.0001299,2]
[338689811,1726877438430,-222.091813,0.00012996,2]
[338689812,1726877438439,-222.091813,0.00012997,2]
[338689813,1726877438448,-222.091813,0.00012998,2]
[338689814,1726877438457,-500.0,0.00012999,2]
[338689815,1726877438465,-500.0,0.00012999,2]
[338689816,1726877438473,-375.91090728,0.00012999,2]
[338689817,1726877438483,-715.83234819,0.00012999,2]
[338689818,1726877438491,-2000.0,0.00012999,2]
[338689819,1726877438500,-2614.31248592,0.00013,2]
[338689820,1726877438512,-644.68559983,0.00013,2]
[338689821,1726877438523,-1016.61,0.00013,2]
[338689822,1726877438533,-1715.6453042,0.00013,2]
[338689823,1726877438548,-37145.9829598,0.00013,2]
[338689824,1726877438559,-478.31959918,0.00013,2]
[338689827,1726877439519,-355.72425126,0.00013,2]
[338689828,1726877439573,-168122.98575364,0.00013,2]
[338689829,1726877439584,-278800.87914809,0.00013,2]
[338689830,1726877439595,-2561.10542528,0.00013,2]
[338689831,1726877439606,-2414.47484465,0.00013,2]
[338689832,1726877439617,-3810.54013007,0.00013,2]
[338689833,1726877439636,-356.19588052,0.00013,2]
[338689834,1726877439647,-682.60523184,0.00013,2]
[338689835,1726877439660,-10207.72485001,0.00013,2]
[338689836,1726877439672,-540.15952284,0.00013,2]
[338689837,1726877439683,-711.3485025,0.00013,2]
[338689838,1726877439695,-947.24,0.00013,2]
[338689839,1726877439768,-1645.50373763,0.00013,2]
[338689840,1726877439840,-4626.59156538,0.00013,2]
[338689842,1726877439851,-52314.45260923,0.00013,2]
[338689844,1726877439863,-1386.33870057,0.00013,2]
[338689846,1726877439873,-2336.89922027,0.00013,2]
[338689849,1726877439886,-311184.65628404,0.00013,2]
[338689851,1726877439895,-65442.29780213,0.00013,2]
[338689853,1726877439906,-24912.89410395,0.00013,2]
[338689855,1726877439917,-3895.58825898,0.00013,2]
[338689997,1726877442888,-305.67881732,0.00013,2]
[338689999,1726877442899,-14038.9224587,0.00013,2]
[338690000,1726877442912,-10440.7642969,0.00013,2]
[338690001,1726877442924,-1240.6631406,0.00013,2]
[338690002,1726877442934,-10992.66936184,0.00013,2]
[338690003,1726877442959,-530.11986904,0.00013,2]
[338690004,1726877442970,-674.16794245,0.00013,2]
[338690005,1726877442981,-2198230.39182028,0.00013,2]
[338690006,1726877442990,-297.95129186,0.00013,2]
[338690007,1726877442999,-166.561401,0.00013,2]
[338690008,1726877443009,-166.561401,0.00013,2]
[338690009,1726877443018,-166.561401,0.00013,2]
[338690010,1726877443027,-166.561401,0.00013,2]
[338690011,1726877443037,-166.561401,0.00013,2]
[338690012,1726877443046,-166.561401,0.00013,2]
[338690013,1726877443055,-166.561401,0.00013,2]
[338690014,1726877443064,-166.561401,0.00013,2]
[338690015,1726877443073,-166.561401,0.00013,2]
[338690016,1726877443082,-166.561401,0.00013,2]
[338690017,1726877443091,-166.561401,0.00013,2]
[338690018,1726877443100,-166.561401,0.00013,2]
[338690019,1726877443109,-166.561401,0.00013,2]
[338690020,1726877443118,-984.6,0.00013,2]
[338690021,1726877443127,-151.0,0.00013,2]
[338690022,1726877443136,-151.0,0.00013,2]
[338690023,1726877443145,-151.0,0.00013,2]
[338690024,1726877443155,-151.0,0.00013,2]
[338690025,1726877443164,-151.0,0.00013,2]
[338690026,1726877443173,-222.034118,0.00013,2]
[338690027,1726877443184,-222.034118,0.00013,2]
[338690028,1726877443194,-222.034118,0.00013,2]
[338690029,1726877443204,-222.034118,0.00013,2]
[338690030,1726877443215,-222.034118,0.00013,2]
[338690031,1726877443227,-222.034118,0.00013,2]
[338690032,1726877443237,-222.034118,0.00013,2]
[338690033,1726877443249,-222.034118,0.00013,2]
[338690034,1726877443259,-222.034118,0.00013,2]
[338690035,1726877443268,-222.034118,0.00013,2]
[338690036,1726877443277,-151.0,0.00013,2]
[338690037,1726877443287,-151.0,0.00013,2]
[338690038,1726877443295,-151.0,0.00013,2]
[338690039,1726877443305,-151.0,0.00013,2]
[338690040,1726877443315,-151.0,0.00013,2]
[338690041,1726877443325,-294.524278,0.00013,2]
[338690042,1726877443334,-317341.67051981,0.00013,2]
[338690043,1726877443345,-181438.15036325,0.00013,2]
[338690044,1726877443357,-571.571,0.00013,2]
[338690045,1726877443395,-489.18296135,0.00013,2]
[338690046,1726877443405,-362.76485203,0.00013,2]
[338690047,1726877443418,-395.94102007,0.00013,2]
[338690048,1726877443430,-444.24779552,0.00013,2]
[338690049,1726877443443,-463.3999995,0.00013,2]
[338690050,1726877443455,-1082.91734936,0.00013,2]
[338690051,1726877443467,-1668.02297108,0.00013,2]
[338690052,1726877443479,-993.12736041,0.00013,2]
[338690053,1726877443490,-773.9542217,0.00013,2]
[338690054,1726877443505,-9012.60170715,0.00013,2]
[338690055,1726877443516,-311.7686698,0.00013,2]
[338690056,1726877443527,-684.93719709,0.00013,2]
[338690057,1726877443538,-1516.6,0.00013,2]
[338690058,1726877443550,-2467.1499995,0.00013,2]
[338690059,1726877443562,-7440.45079688,0.00013,2]
[338690060,1726877443574,-6679.72932,0.00013,2]
[338690061,1726877443587,-333.365006,0.00013,2]
[338690062,1726877443598,-1067.81353758,0.00013,2]
[338690063,1726877443610,-455.24917089,0.00013,2]
[338690064,1726877443621,-85419.82856533,0.00013,2]
[338690065,1726877443634,-12602.56263663,0.00013,2]
[338690066,1726877443646,-478.16699997,0.00013,2]
[338690067,1726877443657,-1000.0,0.00013,2]
[338690068,1726877443668,-484.33001,0.00013,2]
[338690069,1726877443679,-529.685291,0.00013,2]
[338690070,1726877443690,-2285.82171714,0.00013,2]
[338690071,1726877443705,-2558.2578458,0.00013,2]
[338690072,1726877443715,-7764.0017081,0.00013,2]
[338690073,1726877443726,-369.05127365,0.00013,2]
[338690074,1726877443737,-574.40904998,0.00013,2]
[338690075,1726877443749,-15775.77915603,0.00013,2]
[338690076,1726877443760,-242992.47263957,0.00013,2]
[338690077,1726877443770,-3265.01060924,0.00013,2]
[338690078,1726877443781,-754.9399989,0.00013,2]
[338690079,1726877443800,-8739.00278943,0.00013,2]
[338690080,1726877443811,-373.5132,0.00013,2]
[338690081,1726877443822,-593.90282978,0.00013,2]
[338690082,1726877443832,-340.68338463,0.00013,2]
[338690083,1726877443851,-1267.53629767,0.00013,2]
[338690086,1726877445506,-1189.02918722,0.00013,2]
[338690087,1726877445517,-351297.2838038,0.00013,2]
[338690088,1726877445528,-2534.226,0.00013,2]
[338690089,1726877445562,-1325.98466,0.00013,2]
[338690090,1726877445573,-38447.83808893,0.00013,2]
[338690091,1726877445584,-2026.77504163,0.00013,2]
[338690092,1726877445596,-1546.58900404,0.00013,2]
[338690093,1726877445607,-832.13,0.00013,2]
[338690094,1726877445619,-45793.13413091,0.00013,2]
[338690095,1726877445630,-8200.69049466,0.00013,2]
[338690096,1726877445641,-1326.68,0.00013,2]
[338690097,1726877445653,-2800.21661438,0.00013,2]
[338690098,1726877445671,-379.212348,0.00013,2]
[338690099,1726877445686,-1269.51983804,0.00013,2]
[338690100,1726877445697,-2735.70533876,0.00013,2]
[338690101,1726877445708,-1224.9376738,0.00013,2]
[338690102,1726877445726,-581.02513369,0.00013,2]
[338690103,1726877445737,-4417.52516995,0.00013,2]
[338690104,1726877445748,-10401.00682633,0.00013,2]
[338690105,1726877445759,-1529.47956354,0.00013,2]
[338690106,1726877445771,-508.07079341,0.00013,2]
[338690107,1726877445790,-457.03968074,0.00013,2]
[338690108,1726877445801,-1824.73855443,0.00013,2]
[338690109,1726877445813,-265.83958516,0.00013,2]
[338690110,1726877445824,-392.18531531,0.00013,2]
[338690111,1726877445835,-890.80630947,0.00013,2]
[338690112,1726877445856,-907.5,0.00013,2]
[338690113,1726877445867,-3614.48,0.00013,2]
[338690114,1726877445879,-555.0,0.00013,2]
[338690115,1726877445891,-360.08234564,0.00013,2]
[338690116,1726877445902,-1417.56443875,0.00013,2]
[338690117,1726877445914,-914.48554078,0.00013,2]
[338690118,1726877445927,-629.89200498,0.00013,2]
[338690119,1726877445938,-17614.77864084,0.00013,2]
[338690120,1726877446298,382.9079874,0.00011604,2]
[338690123,1726877660876,400.0,0.00011604,2]
[338690125,1726877936548,1000.0,0.0001197,2]
[338690126,1726878007929,250.0,0.0001192,2]
[338690127,1726878009475,174.06,0.00012025,2]
[338690128,1726878042867,305.24,0.00010109,2]
[338690129,1726878050881,1050.0,0.00011,2]
[338690132,1726878164933,177.23,0.00011871,2]
[338690133,1726878165158,177.23,0.00011886,2]
[338690134,1726878165412,177.23,0.00011901,2]
[338690135,1726878165657,177.23,0.00011915,2]
[338690136,1726878165889,177.23,0.0001193,2]
[338690137,1726878237151,6800.0,0.00011604,2]
[338690138,1726878251162,158.1,0.00010959,2]
[338690139,1726878266782,500.0,0.00011164,2]
[338690140,1726878267185,500.0,0.00011164,2]
[338690141,1726878310031,150.0,0.00011688,2]
[338690142,1726878311154,1207.33,0.00012018,2]
[338690143,1726878426102,-250.0,0.00012031,2]
[338690144,1726878426122,-182.28,0.00012035,2]
[338690145,1726878426143,-181.57878906,0.00012039,2]
[338690146,1726878441159,400.0,0.00011604,2]
[338690149,1726878505620,500.0,0.00011164,2]
[338690150,1726878509741,23075.86579516,0.00011604,2]
[338690151,1726878509829,4640.0,0.00011604,2]
[338690152,1726878532556,200.0,0.00012026,2]
[338690156,1726878592094,324.88,0.00010079,2]
[338690157,1726878603845,150.0,0.00012026,2]
[338690158,1726878604046,150.0,0.00012026,2]
[338690159,1726878604259,150.0,0.00012026,2]
[338690160,1726878604464,150.0,0.00012026,2]
[338690161,1726878604715,174.07,0.00012029,2]
[338690162,1726878604812,150.0,0.00012026,2]
[338690163,1726878605012,150.0,0.00012026,2]
[338690164,1726878620418,174.07,0.00012029,2]
[338690165,1726878628615,7630.56489214,0.00011604,2]
[338690166,1726878629620,2000.0,0.00011929,2]
[338690194,1726878632177,-1687.82760072,0.00012039,2]
[338690197,1726878632196,-1154.86373683,0.00012039,2]
[338690199,1726878632208,-482.99531256,0.00012039,2]
[338690202,1726878632221,-322.94456083,0.00012039,2]
[338690204,1726878632231,-292.93,0.00012052,2]
[338690206,1726878632239,-170.97,0.00012072,2]
[338690208,1726878632249,-334.04,0.00012109,2]
[338690210,1726878632258,-324.88,0.00012343,2]
[338690212,1726878632267,-288.0,0.00012408,2]
[338690214,1726878632276,-174.07,0.00012689,2]
[338690216,1726878632286,-300.0,0.00012698,2]
[338690218,1726878632296,-300.0,0.00012698,2]
[338690220,1726878632305,-174.1605,0.00012699,2]
[338690222,1726878632315,-13397.03126416,0.00012699,2]
[338690225,1726878632334,-727.73898001,0.00012699,2]
[338690227,1726878632345,-64.91314537,0.00012699,2]
[338690229,1726878632355,-308.98765548,0.00012699,2]
[338690231,1726878632364,-1000.0,0.000127,2]
[338690233,1726878632373,-174.07,0.0001277,2]
[338690235,1726878632383,-150.0,0.00012779,2]
[338690237,1726878632393,-2561.63989971,0.0001278,2]
[338690239,1726878632404,-11024.2,0.0001278,2]
[338690241,1726878632415,-10998.62063879,0.0001278,2]
[338690243,1726878632426,-23813.21714294,0.0001278,2]
[338690245,1726878632437,-27774.46373199,0.0001278,2]
[338690248,1726878632452,-906.34494258,0.0001278,2]
[338690250,1726878632463,-12300.00594959,0.0001278,2]
[338690252,1726878632474,-151468.0814191,0.0001278,2]
[338690254,1726878632486,-77317.31498458,0.0001278,2]
[338690257,1726878632497,-16260.71421005,0.0001278,2]
[338690259,1726878632510,-494.6480531,0.0001278,2]
[338690261,1726878632521,-561.75930824,0.0001278,2]
[338690284,1726878637763,-7654.46792279,0.0001278,2]
[338690285,1726878637774,-76923.10932641,0.0001278,2]
[338690286,1726878637786,-3444.51359154,0.0001278,2]
[338690287,1726878637797,-2582.19739184,0.0001278,2]
[338690288,1726878637822,-6035.8958172,0.0001278,2]
[338690289,1726878637833,-18639.8583427,0.0001278,2]
[338690290,1726878637846,-1952.74361478,0.0001278,2]
[338690291,1726878637858,-432.96339634,0.0001278,2]
[338690292,1726878637869,-3547.12983784,0.0001278,2]
[338690293,1726878637881,-783.45476951,0.0001278,2]
[338690294,1726878637893,-1462.91947175,0.0001278,2]
[338690295,1726878637903,-499.99,0.00012799,2]
[338690296,1726878637912,-428.04,0.000128,2]
[338690297,1726878637922,-150.0,0.000128,2]
[338690298,1726878637932,-150.0,0.000128,2]
[338690299,1726878637942,-150.0,0.000128,2]
[338690300,1726878637951,-150.0,0.000128,2]
[338690301,1726878637961,-150.0,0.000128,2]
[338690302,1726878637969,-300.0,0.000128,2]
[338690303,1726878637979,-1210.0,0.000128,2]
[338690304,1726878637988,-2898.24649925,0.0001287,2]
[338690305,1726878637997,-500.0,0.00012896,2]
[338690306,1726878638007,-200.0,0.00012896,2]
[338690307,1726878638018,-1759.4757,0.000129,2]
[338690308,1726878638027,-165.31942678,0.000129,2]
[338690309,1726878638037,-1496.04518284,0.000129,2]
[338690310,1726878638049,-650.60821716,0.000129,2]
[338690311,1726878638059,-1059.39178289,0.000129,2]
[338690315,1726878638092,-449.19091711,0.000129,2]
[338690317,1726878638101,-154.87143135,0.000129,2]
[338690318,1726878638111,-409.957,0.000129,2]
[338690319,1726878638120,-160.36941333,0.000129,2]
[338690320,1726878638130,-154.31128906,0.000129,2]
[338690321,1726878638139,-233.7876018,0.000129,2]
[338690322,1726878638148,-2677.3116,0.000129,2]
[338690323,1726878638157,-621.1315058,0.000129,2]
[338690324,1726878638167,-280.90272352,0.000129,2]
[338690326,1726878638176,-14189.68338949,0.00012944,2]
[338690328,1726878638185,-500.0,0.00012973,2]
[338690330,1726878638195,-500.0,0.00012973,2]
[338690332,1726878638204,-1000.0,0.00012986,2]
[338690334,1726878638213,-155.7112312,0.00012986,2]
[338690336,1726878638222,-1549.0,0.00012991,2]
[338690338,1726878638232,-188.121,0.00012991,2]
[338690340,1726878638241,-13489.0,0.00012991,2]
[338690342,1726878638251,-357.91617409,0.00012999,2]
[338690344,1726878638261,-500.0,0.00012999,2]
[338690346,1726878638271,-500.0,0.00012999,2]
[338690348,1726878638280,-500.0,0.00012999,2]
[338690350,1726878638290,-500.0,0.00012999,2]
[338690352,1726878638299,-500.0,0.00012999,2]
[338690353,1726878638309,-500.0,0.00012999,2]
[338690354,1726878638318,-521.75,0.00012999,2]
[338690355,1726878638328,-2000.0,0.00012999,2]
[338690356,1726878638338,-500.0,0.00012999,2]
[338690357,1726878638347,-500.0,0.00012999,2]
[338690358,1726878638357,-500.0,0.00012999,2]
[338690359,1726878638366,-500.0,0.00012999,2]
[338690360,1726878638376,-500.0,0.00012999,2]
[338690361,1726878638385,-500.0,0.00012999,2]
[338690362,1726878638395,-521.75,0.00012999,2]
[338690363,1726878638404,-512.0,0.00013,2]
[338690364,1726878638413,-161859.56844917,0.00013,2]
[338690365,1726878638423,-14938.01,0.00013,2]
[338690366,1726878638432,-1417820.61611043,0.00013,2]
[338690367,1726878638445,-580122.20972392,0.00013,2]
[338690368,1726878638455,-700.0,0.00013,2]
[338690369,1726878638464,-364.190816,0.00013,2]
[338690370,1726878638474,-364.190816,0.00013,2]
[338690371,1726878638484,-30321.0,0.00013,2]
[338690372,1726878638494,-151.0,0.00013,2]
[338690374,1726878638505,-151.0,0.00013,2]
[338690376,1726878638515,-189.604122,0.00013,2]
[338690378,1726878638524,-154.166824,0.00013,2]
[338690379,1726878638534,-151.0,0.00013,2]
[338690382,1726878638543,-318.767721,0.00013,2]
[338690384,1726878638553,-318.767721,0.00013,2]
[338690385,1726878638562,-151.0,0.00013,2]
[338690388,1726878638571,-151.0,0.00013,2]
[338690390,1726878638581,-151.0,0.00013,2]
[338690392,1726878638590,-151.0,0.00013,2]
[338690394,1726878638600,-666.679305,0.00013,2]
[338690396,1726878638609,-666.679305,0.00013,2]
[338690398,1726878638618,-151.0,0.00013,2]
[338690400,1726878638628,-151.0,0.00013,2]
[338690401,1726878638637,-151.0,0.00013,2]
[338690403,1726878638647,-363.351607,0.00013,2]
[338690405,1726878638656,-363.351607,0.00013,2]
[338690407,1726878638665,-151.0,0.00013,2]
[338690409,1726878638675,-151.0,0.00013,2]
[338690411,1726878638684,-151.0,0.00013,2]
[338690413,1726878638694,-151.0,0.00013,2]
[338690415,1726878638704,-151.0,0.00013,2]
[338690417,1726878638714,-319.313736,0.00013,2]
[338690419,1726878638724,-319.313736,0.00013,2]
[338690421,1726878638734,-294.140699,0.00013,2]
[338690423,1726878638744,-294.140699,0.00013,2]
[338690425,1726878638753,-293.544,0.00013,2]
[338690427,1726878638764,-152.186238,0.00013,2]
[338690429,1726878638773,-151.0,0.00013,2]
[338690431,1726878638782,-293.544,0.00013,2]
[338690433,1726878638792,-151.0,0.00013,2]
[338690435,1726878638801,-277.43241,0.00013,2]
[338690452,1726878638951,-277.43241,0.00013,2]
[338690454,1726878638960,-151.0,0.00013,2]
[338690456,1726878638970,-151.0,0.00013,2]
[338690458,1726878638979,-151.0,0.00013,2]
[338690460,1726878638988,-151.0,0.00013,2]
[338690462,1726878638998,-218.466884,0.00013,2]
[338690464,1726878639009,-1282.309878,0.00013,2]
[338690466,1726878639019,-1282.309878,0.00013,2]
[338690468,1726878639029,-287.148721,0.00013,2]
[338690470,1726878639038,-287.148721,0.00013,2]
[338690472,1726878639047,-151.0,0.00013,2]
[338690474,1726878639056,-2000.0,0.00013,2]
[338690476,1726878639066,-151.476823,0.00013,2]
[338690478,1726878639076,-560.231785,0.00013,2]
[338690480,1726878639086,-560.231785,0.00013,2]